Cogmind - Beta 9.2 @@@ ROGUE MODE // 2019.11.21 @ 01:00:25 Player: russur Result: Self-destructed Performance ------------- Evolutions (1) 500 Regions Visited (2) 400 Robots Destroyed (4) 20 Value Destroyed (74) 74 Prototype IDs (0) 0 Alien Tech Used (0) 0 Bonus (0) 0 TOTAL SCORE: 994 Bonus ------- None Cogmind --------- Core Integrity 288/400 Matter 210/300 Energy 250/250 System Corruption 0% Temperature Cool (0) Movement Walking (180) Ox2 Location -9/Materials Parts ------- > --- POWER (2) -------- Ion Engine > --- PROPULSION (3) --- Aluminum Leg > --- UTILITY (2) ------ Large Storage Unit Improved Targeting Computer > --- WEAPON (2) ------- Heavy Hammer > --- INVENTORY (10) --- Light Treads Light Treads Improved Signal Interpreter EM Pulse Gun EM Pulse Gun EM Pulse Gun Improved EM Shotgun Improved EM Shotgun Assault Rifle Peak State ------------ > --- POWER ------------ Ion Engine Ion Engine > --- PROPULSION ------- Aluminum Leg Aluminum Leg > --- UTILITY ---------- Large Storage Unit Improved Targeting Computer > --- WEAPON ----------- Grenade Launcher Heavy Hammer > --- INVENTORY -------- Light Treads Light Treads Improved Signal Interpreter EM Pulse Gun EM Pulse Gun EM Pulse Gun Improved EM Shotgun Assault Rifle [Rating: 11] Favorites ----------- Power Ion Engine Engine Ion Engine Propulsion Aluminum Leg Leg Aluminum Leg Utility Large Storage Unit Storage Large Storage Unit Processor Improved Targeting Computer Weapon EM Pulse Gun Energy Gun EM Pulse Gun Launcher Grenade Launcher Impact Weapon Heavy Hammer Build | -11 -10 -9 ------- Run | Scr Mat Mat Slots Evolved 2 | . . 2 Power 1 | . . 1 Propulsion 1 | . . 1 Utility . | . . . Weapon . | . . . Parts Attached 11 | 6 2 3 Power 2 | 1 . 1 Engine 2 | 1 . 1 Core . | . . . Reactor . | . . . Propulsion 2 | 2 . . Treads . | . . . Leg 2 | 2 . . Wheel . | . . . Hover . | . . . Flight . | . . . Utility 3 | 1 1 1 Device . | . . . Storage 2 | 1 1 . Processor 1 | . . 1 Hackware . | . . . Protection . | . . . Artifact . | . . . Weapon 4 | 2 1 1 Energy Gun 2 | 2 . . Energy Cannon . | . . . Ballistic Gun . | . . . Ballistic Cannon . | . . . Launcher 1 | . . 1 Special Weapon . | . . . Impact Weapon 1 | . 1 . Slashing Weapon . | . . . Piercing Weapon . | . . . Special Melee Weapon . | . . . Unidentified Prototypes . | . . . Parts Lost 3 | . . 3 Power 1 | . . 1 Propulsion 1 | . . 1 Utility . | . . . Weapon 1 | . . 1 Highest Loss Streak 3 | . . 3 Average Slot Usage (%) 83 | . 85 80 Engine 16 | . 14 21 Leg 24 | . 28 20 Storage 13 | . 14 11 Processor 3 | . . 8 Energy Gun 10 | . 14 5 Launcher 1 | . . 3 Impact Weapon 12 | . 13 11 Naked Turns . | . . . Heaviest Build 32 | 13 26 32 Greatest Support 20 | 20 20 20 Greatest Overweight (x) 1 | 1 1 1 Average Overweight (x) . | . . 1 Largest Inventory Capacity 12 | 6 12 10 Average Capacity 8 | 4 9 10 Most Carried 9 | 4 8 9 Average Carried 5 | 1 6 7 Final Capacity 10 | 6 10 10 Final Carried 9 | 4 8 9 Class Distribution -------------------- 100% | Mutant Dominant Class ---------------- Mutant | -10/Materials Mutant | -9/Materials Resources | -11 -10 -9 ----------- Run | Scr Mat Mat Matter Collected 235 | 174 41 20 Remotely . | . . . Salvage Created 70 | . 41 29 Parts 7 | . 1 6 Haulers Intercepted . | . . . Recyclers Shooed . | . . . Parts Field Recycled . | . . . Retrieved Matter . | . . . Parts Self-Destructed . | . . . Prevented . | . . . Kills | -11 -10 -9 ------- Run | Scr Mat Mat Combat Hostiles Destroyed 4 | . 1 3 AOE 3 | . . 3 Classes Destroyed 2 | . 1 1 Swarmer 3 | . . 3 Grunt 1 | . 1 . Best Kill Streak 3 | . 1 3 Combat Bots Only 3 | . 1 3 Max Kills in Single Turn 3 | . 1 3 Gunslinging . | . . . Exploded 3 | . . 3 Melee . | . . . Uniques/NPCs Destroyed . | . . . Combat | -11 -10 -9 -------- Run | Scr Mat Mat Damage Taken 615 | . 66 549 Core 123 | . 11 112 Absorbed by Shields . | . . . Core Remaining (%) 97 | 100 95 . Volleys Fired 7 | . 4 3 Largest 1 | . 1 1 Hottest 40 | . 40 30 Shots Fired 7 | . 4 3 Gun 4 | . 4 . Cannon . | . . . Launcher 3 | . . 3 Special . | . . . Kinetic . | . . . Thermal . | . . . Explosive 3 | . . 3 Electromagnetic 4 | . 4 . Robot Hit Streak 2 | . . 2 Robot Miss Streak 3 | . 3 . Penetration Max . | . . . Secondary Targets . | . . . Shots Hit Robots 12 | . 2 10 Core Hits 5 | . 1 4 Critical Hits . | . . . Critical Kills . | . . . Critical Parts Destroyed . | . . . Melee Attacks 11 | . 3 8 Impact 11 | . 3 8 Slashing . | . . . Piercing . | . . . Sneak Attacks . | . . . Combat Hostiles . | . . . Follow-up Attacks . | . . . Damage Inflicted 350 | . 74 276 Guns 13 | . 13 . Cannons . | . . . Explosions 137 | . . 137 Melee 200 | . 61 139 Ramming . | . . . Kinetic . | . . . Thermal . | . . . Explosive 137 | . . 137 Electromagnetic 13 | . 13 . Impact 200 | . 61 139 Slashing . | . . . Piercing . | . . . Highest Corruption . | . . . Average Corruption . | . . . Corruption Purged . | . . . Overload Shots . | . . . Overflow Damage 21 | . 21 . Projectiles . | . . . Explosions . | . . . Melee 21 | . 21 . Knockbacks 1 | . 1 . Impact 1 | . 1 . Kinetic . | . . . Secondary . | . . . Self-Inflicted Damage 55 | . . 55 Shots 2 | . . 2 Rammed . | . . . Targets Rammed . | . . . Kicked . | . . . Crushed . | . . . Highest Temperature 6 | . 6 6 Average Temperature 6 | . 6 6 Received Heat Transfer 117 | . 36 81 Siege Activations . | . . . Robots Corrupted 1 | . 1 . Combat Hostiles 1 | . 1 . Parts Fried 2 | . 2 . Impact Corruptions 1 | . 1 . Robots Melted . | . . . Combat Hostiles . | . . . Parts Melted . | . . . Heat Transferred . | . . . Parts Sabotaged . | . . . Parts Stolen . | . . . Parts Stripped . | . . . Power Chain Reactions . | . . . Missiles Intercepted . | . . . Alert | -11 -10 -9 ------- Run | Scr Mat Mat Peak Influence 125 | . 35 125 Average Influence 29 | . 20 58 Maximum Alert Level . | . . . Low Security (%) 100 | 100 100 100 Level 1 . | . . . Level 2 . | . . . Level 3 . | . . . Level 4 . | . . . Level 5 . | . . . High Security . | . . . Max Security . | . . . Squads Dispatched . | . . . Investigation . | . . . Extermination . | . . . Reinforcement . | . . . Assault . | . . . Garrison . | . . . Intercept . | . . . Construction Impeded . | . . . Haulers Reinforced . | . . . Stealth | -11 -10 -9 --------- Run | Scr Mat Mat Distress Signals 1 | . 1 . Communications Jammed . | . . . Distress Signals . | . . . Times Spotted 13 | . 3 10 Peak Tracking Total 6 | . 2 6 Tactical Retreats 1 | . . 1 Traps | -11 -10 -9 ------- Run | Scr Mat Mat Traps Triggered . | . . . Indirectly . | . . . Trap Hack Attempts . | . . . Triggered . | . . . Disarmed . | . . . Reprogrammed . | . . . Reused . | . . . Traps Extracted . | . . . Installed . | . . . Triggered . | . . . Machines | -11 -10 -9 ---------- Run | Scr Mat Mat Machines Disabled 1 | . . 1 Max in Single Turn 1 | . . 1 Machines Sabotaged . | . . . Garrisons Compromised . | . . . Overloaded Fab Kills . | . . . Fab Network Shutdowns . | . . . Hacking | -11 -10 -9 --------- Run | Scr Mat Mat Machines Accessed 3 | . 2 1 Terminals 3 | . 2 1 Fabricators . | . . . Repair Stations . | . . . Recycling Units . | . . . Scanalyzers . | . . . Garrison Access . | . . . Total Hacks 7 | . 4 3 Successful 4 | . 2 2 Failed 3 | . 2 1 Catastrophic . | . . . Database Lockouts . | . . . Manual 7 | . 4 3 Terminals 7 | . 4 3 Fabricators . | . . . Repair Stations . | . . . Recycling Units . | . . . Scanalyzers . | . . . Garrison Access . | . . . Terminal Hacks 1 | . . 1 Terminal Index 1 | . . 1 Fabricator Hacks . | . . . Repair Station Hacks . | . . . Recycling Unit Hacks . | . . . Scanalyzer . | . . . Garrison Access Hacks . | . . . Unauthorized Hacks 8 | . 6 2 Terminals 3 | . 2 1 Botnet 3 | . 2 1 Fabricators . | . . . Repair Stations . | . . . Recycling Units . | . . . Scanalyzers . | . . . Garrison Access . | . . . Data Cores Recovered . | . . . Used . | . . . Hacking Detections 1 | . 1 . Full Trace Events 1 | . 1 . Feedback Events . | . . . Feedback Blocked . | . . . Robot Schematics Acquired . | . . . Robots Built . | . . . Matter . | . . . Time . | . . . Total Robot Build Rating . | . . . Part Schematics Acquired . | . . . Parts Built . | . . . Matter . | . . . Time . | . . . Total Part Build Rating . | . . . Parts Repaired . | . . . Time . | . . . Parts Recycled . | . . . Recycled Matter . | . . . Retrieved Matter . | . . . Retrieved Components . | . . . Parts Scanalyzed . | . . . Part Schematics Acquired . | . . . Parts Damaged . | . . . Bothacking | -11 -10 -9 ------------ Run | Scr Mat Mat Used RIF Installer . | . . . Robots Hacked . | . . . Non-combat . | . . . Combat . | . . . Robot Hacks Applied . | . . . Relay Couplers Released . | . . . Robots Rewired . | . . . Allies Hacked . | . . . Hacks Repelled . | . . . Allies | -11 -10 -9 -------- Run | Scr Mat Mat Total Allies . | . . . Largest Group . | . . . Highest-Rated Group . | . . . Highest-Rated Ally . | . . . Total Orders . | . . . Ally Attacks . | . . . Total Damage . | . . . Kills . | . . . Allies Corrupted . | . . . Allies Melted . | . . . Intel | -11 -10 -9 ------- Run | Scr Mat Mat Robot Analysis Total . | . . . Derelict Logs Recovered . | . . . Drone Launches . | . . . Drone Recoveries . | . . . Exploration | -11 -10 -9 ------------- Run | Scr Mat Mat Turns Passed 440 | 74 223 143 Spaces Moved 263 | 54 138 71 Core 6 | 6 . . Treads . | . . . Legs 257 | 48 138 71 Wheels . | . . . Hover . | . . . Flight . | . . . Fastest Speed 50 | 50 120 150 Average Speed 139 | 114 144 150 Slowest Speed 150 | 120 150 150 Overloaded Moves . | . . . Propulsion Burnouts . | . . . Robots Hopped . | . . . Cave-ins Triggered . | . . . Exploration Rate (%) 13 | 3 25 13 Regions Visited 2 Branch Regions . Pre-discovered Areas . | . . . Known Exits Taken . | . . . Unknown Exits Taken 2 | 1 1 . Scrap Searched . | . . . Spaces Dug . | . . . Terrain Destroyed 16 | . . 16 Melee . | . . . Projectile . | . . . AOE 16 | . . 16 Actions | -11 -10 -9 --------- Run | Scr Mat Mat Total 301 | 63 151 87 Wait . | . . . Move 261 | 53 137 71 Hop . | . . . Pick Up 10 | 4 4 2 Fast Attach 8 | 6 1 1 Attach 1 | . . 1 Detach . | . . . Swap 2 | . 1 1 Drop 1 | . 1 . Fire 7 | . 4 3 Melee 11 | . 3 8 Ram . | . . . Kick . | . . . Crush . | . . . Escape Stasis . | . . . Rewire . | . . . Trap . | . . . Miscellaneous . | . . . Route ------- -11/Scrapyard -10/Materials -9/Materials History --------- Turn | Location | Event 10 | -11/Scrapyard | Discovered new exit (range 14) 75 | -11/Scrapyard | Entered Materials 275 | -10/Materials | Discovered new exit (range 16) 298 | -10/Materials | Entered another Materials area 298 | -9/Materials | Evolved 2 slots: Power x1, Propulsion x1 319 | -9/Materials | Build established: Mutant 441 | -9/Materials | Self-destructed Last Messages --------------- 00331_ Acquired Imp. Targeting Computer. 00383_ Atomic Centrifuge disabled. 00385_ S-10 Pest destroyed. 00388_ U-05 Engineer lays Concrete. 00393_ Acquired 10 matter. 00394_ U-05 Engineer lays Concrete. 00395_ Acquired 10 matter. 00396_ U-05 Engineer lays Concrete. 00401_ U-05 Engineer builds a Wall. 00401_ R-06 Scavenger collects Flight Unit. 00402_ U-05 Engineer lays Concrete. 00407_ Acquired Prototype Energy Gun. 00417_ Grenade Launcher destroyed. 00423_ U-05 Engineer lays Concrete. 00427_ Aluminum Leg destroyed. 00427_ U-05 Engineer lays Concrete. 00439_ U-05 Engineer builds a Door. 00439_ U-05 Engineer lays Concrete. 00439_ Ion Engine destroyed. 00440_ U-05 Engineer lays Concrete. Map ----- +----------------------------------------------------+ | ???????????????????????????# #????????????? | | ????????????????????? ????## ##???????????? | | ???????????????????##+##### #???????????? | | ???????????????????# #???????????? | | ???????????????????# +???????????? | | ?????????????##????# #???????????? | | ?????????????# ? ?# #### #???????????? | | ?????????????# ?# ######+######????????? | | ?????????????# ?# # #????????? | | ?????????????# # # #????????? | | ?????????????? # " """ #????????? | | ?????????????# """ + """ ] #????????? | | ?????????????# """ # " """ #????????? | | ?????????????# """ #????????? | | ?????????????# """ #????????? | | ?????????????# """ =* ############????????? | | ?????????????# ###### #????????? | | ?????????????# *= #????????? | | ?????????????###### +????????? | | ??????????????????# #????????? | | ?????????????????####+######## #????????? | | ?????????????????# #?? ##????????? | | ????????? #### """ #????#?????????? | | ?????????? ss/ [ "R" ##?????????????? | | ?????????????????# [[[ " " #?????????????? | | ?????????????????# [[[ @u ##?????????????? | | ?????????????????# k Y #??????????????? | | ?????????????????# u !#??????????????? | | ?????????????????###+## + ####??????????????? | | ???????????????????#?? ?????????????????? | | ????????????????????? k ????????????????? | | ???????????????????? ???????????????? | | ???????????????????#####+####???????????????? | | ??????????????????????? ???????????????????? | | ??????????????????????? ???????????????????? | | ??????????????????????? ???????????????????? | | ??????????????????????? ???????????????????? | | ??????????????????????? ???????????????????? | | ??????????????????????"""???????????????????? | | ???????????????????????""???????????????????? | | ????????????????????????????????????????????? | | ????????????????????????????????????????????? | | ????????????????????????????????????????????? | | ????????????????????????????????????????????? | | ????????????????????????????????????????????? | | ????????????????????????????????????????????? | | ????????????????????????????????????????????? | | ????????????????????????????????????????????? | | ????????????????????????????????????????????? | | ????????????????????????????????????????????? | +----------------------------------------------------+ Best States ------------- Heat Dissipation 28 Energy Generation 15 Energy Capacity 400 Matter Stores 235 Matter Capacity 300 Sight Range 16 Terrain Scan Density 10 Evasion (%) 40 Targeting Accuracy 6 Item Schematics ----------------- None Robot Schematics ------------------ None Fabricated ------------ Nothing Alien Tech Used ----------------- None Achievements -------------- None Challenges ------------ None Game ------ Seed InsulatedTeslaWings Manual? 0 Play Time 00:10:07 Cumulative 5.5 hours Start 2019.11.20 @ 20:36:20 End 2019.11.21 @ 01:00:25 Sessions 2 Manual Loads 0 Difficulty Rogue Special Mode None Game No. 16 Rogue 16 Adventurer 0 Explorer 0 Win Type - Total 0 Types 0/0/0/0/0/0/0 Lore% 10 Gallery% 12 Achievement% 12 Wizard Run 0 Options --------- ASCII 0 Keyboard 0 Movement Mouse Keybinds 0 Fullscreen 1 Font 28/SmallcapsGlow Map View 84x54 Tactical HUD 1 Map Filters NONE Filters NONE Steam 1 RUN: 2ad72dbf-71d7-49b8-bf93-fdb4d88aa6f0